[Event "January 9 Early 2024"]
[Site "https://www.chess.com"]
[Date "2024.01.11"]
[Round "1"]
[White "Tomb, Maroun"]
[Black "Michalski, Olaf"]
[Result "1-0"]
[Board "198"]
[TimeControl "180+1"]
[WhiteFideId "5300398"]
[BlackFideId "1106740"]
[WhiteElo "2567"]
[BlackElo "2163"]
[WhiteTeam "LBN"]
[BlackTeam "POL"]
[WhiteClock "0:00:14"]
[BlackClock "0:00:02"]

1. e4 {[%clk 0:03:00]}  c5 {[%clk 0:02:57]} 2. Ne2 {[%clk 0:02:58]}  a6 {[%clk 0:02:56]} 3. c4 {[%clk 0:02:57]}  Nc6 {[%clk 0:02:55]} 4. Nbc3 {[%clk 0:02:58]}  e5 {[%clk 0:02:55]} 5. d3 {[%clk 0:02:55]}  d6 {[%clk 0:02:52]} 6. g3 {[%clk 0:02:53]}  g6 {[%clk 0:02:47]} 7. Bg2 {[%clk 0:02:53]}  Bg7 {[%clk 0:02:47]} 8. f4 {[%clk 0:02:53]}  Nge7 {[%clk 0:02:30]} 9. O-O {[%clk 0:02:52]}  O-O {[%clk 0:02:30]} 10. h3 {[%clk 0:02:49]}  Nd4 {[%clk 0:02:16]} 11. g4 {[%clk 0:02:43]}  exf4 {[%clk 0:02:03]} 12. Nxf4 {[%clk 0:02:42]}  Nec6 {[%clk 0:02:02]} 13. Nfd5 {[%clk 0:02:38]}  Be6 {[%clk 0:01:50]} 14. Be3 {[%clk 0:02:37]}  b5 {[%clk 0:01:32]} 15. Qd2 {[%clk 0:02:15]}  bxc4 {[%clk 0:01:20]} 16. dxc4 {[%clk 0:02:14]}  Ne5 {[%clk 0:01:20]} 17. b3 {[%clk 0:02:07]}  Rb8 {[%clk 0:01:07]} 18. Bh6 {[%clk 0:01:56]}  Qh4 {[%clk 0:00:47]} 19. Bg5 {[%clk 0:01:33]}  Qg3 {[%clk 0:00:46]} 20. Qe3 {[%clk 0:00:58]}  Qxe3+ {[%clk 0:00:41]} 21. Bxe3 {[%clk 0:00:59]}  Nc2 {[%clk 0:00:41]} 22. Rad1 {[%clk 0:00:49]}  Nxe3 {[%clk 0:00:30]} 23. Nxe3 {[%clk 0:00:50]}  Nxg4 {[%clk 0:00:19]} 24. Nxg4 {[%clk 0:00:48]}  Bxc3 {[%clk 0:00:19]} 25. Rxd6 {[%clk 0:00:48]}  Bd4+ {[%clk 0:00:09]} 26. Kh1 {[%clk 0:00:47]}  h5 {[%clk 0:00:08]} 27. Nf6+ {[%clk 0:00:42]}  Kg7 {[%clk 0:00:08]} 28. Nd5 {[%clk 0:00:37]}  a5 {[%clk 0:00:06]} 29. Ra6 {[%clk 0:00:32]}  Ra8 {[%clk 0:00:06]} 30. Rxa8 {[%clk 0:00:30]}  Rxa8 {[%clk 0:00:07]} 31. Nc7 {[%clk 0:00:30]}  Ra7 {[%clk 0:00:05]} 32. Nb5 {[%clk 0:00:27]}  Rd7 {[%clk 0:00:04]} 33. Rd1 {[%clk 0:00:26]}  a4 {[%clk 0:00:04]} 34. Nxd4 {[%clk 0:00:20]}  cxd4 {[%clk 0:00:04]} 35. e5 {[%clk 0:00:20]}  axb3 {[%clk 0:00:04]} 36. axb3 {[%clk 0:00:21]}  f6 {[%clk 0:00:03]} 37. exf6+ {[%clk 0:00:19]}  Kxf6 {[%clk 0:00:03]} 38. c5 {[%clk 0:00:19]}  Bxb3 {[%clk 0:00:02]} 39. Rd2 {[%clk 0:00:14]} 1-0

[Event "January 9 Early 2024"]
[Site "https://www.chess.com"]
[Date "2024.01.11"]
[Round "1"]
[White "Makarian, Rudik"]
[Black "Iljin, Timofey"]
[Result "1-0"]
[Board "200"]
[TimeControl "180+1"]
[WhiteFideId "44105681"]
[BlackFideId "14110180"]
[WhiteElo "3085"]
[BlackElo "2528"]
[WhiteTeam "FID"]
[BlackTeam "UKR"]
[WhiteClock "0:00:33"]
[BlackClock "0:00:07"]

1. d4 {[%clk 0:03:00]}  f5 {[%clk 0:03:00]} 2. g3 {[%clk 0:02:56]}  Nf6 {[%clk 0:03:00]} 3. Bg2 {[%clk 0:02:56]}  g6 {[%clk 0:02:59]} 4. c4 {[%clk 0:02:56]}  Bg7 {[%clk 0:02:57]} 5. Nc3 {[%clk 0:02:57]}  O-O {[%clk 0:02:58]} 6. Nh3 {[%clk 0:02:57]}  d6 {[%clk 0:02:58]} 7. d5 {[%clk 0:02:57]}  e5 {[%clk 0:02:52]} 8. dxe6 {[%clk 0:02:55]}  c6 {[%clk 0:02:52]} 9. O-O {[%clk 0:02:46]}  Bxe6 {[%clk 0:02:51]} 10. b3 {[%clk 0:02:36]}  Na6 {[%clk 0:02:06]} 11. Bb2 {[%clk 0:02:30]}  Nc5 {[%clk 0:02:06]} 12. Ng5 {[%clk 0:02:25]}  Bc8 {[%clk 0:02:01]} 13. Qc2 {[%clk 0:02:23]}  h6 {[%clk 0:02:00]} 14. Nf3 {[%clk 0:02:23]}  Be6 {[%clk 0:01:58]} 15. Rad1 {[%clk 0:02:24]}  Qc7 {[%clk 0:01:54]} 16. Nd4 {[%clk 0:02:22]}  Bf7 {[%clk 0:01:52]} 17. b4 {[%clk 0:02:18]}  Ne6 {[%clk 0:01:18]} 18. Nxe6 {[%clk 0:01:42]}  Bxe6 {[%clk 0:01:18]} 19. Qd3 {[%clk 0:01:42]}  Rad8 {[%clk 0:01:16]} 20. a3 {[%clk 0:01:39]}  Rfe8 {[%clk 0:01:16]} 21. e3 {[%clk 0:01:38]}  Ng4 {[%clk 0:01:07]} 22. Na4 {[%clk 0:01:14]}  Ne5 {[%clk 0:00:37]} 23. Bxe5 {[%clk 0:01:12]}  dxe5 {[%clk 0:00:38]} 24. Qc2 {[%clk 0:01:12]}  e4 {[%clk 0:00:27]} 25. Nc5 {[%clk 0:01:12]}  Bc8 {[%clk 0:00:27]} 26. Nb3 {[%clk 0:01:12]}  b6 {[%clk 0:00:27]} 27. Rfe1 {[%clk 0:01:06]}  Be6 {[%clk 0:00:27]} 28. Nd4 {[%clk 0:01:04]}  Bf7 {[%clk 0:00:27]} 29. c5 {[%clk 0:01:03]}  b5 {[%clk 0:00:20]} 30. h4 {[%clk 0:01:03]}  Bc4 {[%clk 0:00:15]} 31. Bf1 {[%clk 0:00:59]}  Bd5 {[%clk 0:00:15]} 32. Ne2 {[%clk 0:00:59]}  Qf7 {[%clk 0:00:14]} 33. Qb1 {[%clk 0:00:52]}  g5 {[%clk 0:00:14]} 34. hxg5 {[%clk 0:00:50]}  hxg5 {[%clk 0:00:15]} 35. Bg2 {[%clk 0:00:48]}  Bc4 {[%clk 0:00:13]} 36. Rxd8 {[%clk 0:00:45]}  Rxd8 {[%clk 0:00:13]} 37. g4 {[%clk 0:00:43]}  Bd3 {[%clk 0:00:12]} 38. Qc1 {[%clk 0:00:43]}  f4 {[%clk 0:00:12]} 39. exf4 {[%clk 0:00:43]}  gxf4 {[%clk 0:00:08]} 40. Qxf4 {[%clk 0:00:42]}  Bxe2 {[%clk 0:00:07]} 41. Qxf7+ {[%clk 0:00:41]}  Kxf7 {[%clk 0:00:08]} 42. Rxe2 {[%clk 0:00:42]}  Rd1+ {[%clk 0:00:08]} 43. Kh2 {[%clk 0:00:38]}  Ra1 {[%clk 0:00:06]} 44. Bxe4 {[%clk 0:00:37]}  Rxa3 {[%clk 0:00:07]} 45. Bxc6 {[%clk 0:00:37]}  a6 {[%clk 0:00:07]} 46. Bb7 {[%clk 0:00:33]}  Rb3 {[%clk 0:00:07]} 47. Bd5+ {[%clk 0:00:33]} 1-0

[Event "January 9 Early 2024"]
[Site "https://www.chess.com"]
[Date "2024.01.11"]
[Round "1"]
[White "Bardyk, Artem"]
[Black "Foisor, Sabina-Francesca"]
[Result "1/2-1/2"]
[Board "202"]
[TimeControl "180+1"]
[WhiteFideId "34349979"]
[BlackFideId "1212915"]
[WhiteElo "2768"]
[BlackElo "2447"]
[WhiteTeam "RUS"]
[BlackTeam "USA"]
[WhiteClock "0:00:37"]
[BlackClock "0:00:22"]

1. e4 {[%clk 0:03:00]}  c6 {[%clk 0:02:59]} 2. Nf3 {[%clk 0:02:57]}  d5 {[%clk 0:02:59]} 3. exd5 {[%clk 0:02:58]}  cxd5 {[%clk 0:02:59]} 4. Ne5 {[%clk 0:02:58]}  a6 {[%clk 0:02:52]} 5. d4 {[%clk 0:02:58]}  Nf6 {[%clk 0:02:50]} 6. c3 {[%clk 0:02:58]}  Bf5 {[%clk 0:02:50]} 7. Qb3 {[%clk 0:02:53]}  Qc8 {[%clk 0:02:45]} 8. Nd2 {[%clk 0:02:49]}  e6 {[%clk 0:02:38]} 9. Be2 {[%clk 0:02:48]}  Bd6 {[%clk 0:02:37]} 10. O-O {[%clk 0:02:47]}  O-O {[%clk 0:02:37]} 11. Ndf3 {[%clk 0:02:46]}  Nc6 {[%clk 0:02:34]} 12. Bf4 {[%clk 0:02:44]}  Qc7 {[%clk 0:02:33]} 13. Bg3 {[%clk 0:02:41]}  Ne4 {[%clk 0:02:31]} 14. Nxc6 {[%clk 0:02:37]}  bxc6 {[%clk 0:02:29]} 15. Bxd6 {[%clk 0:02:32]}  Qxd6 {[%clk 0:02:30]} 16. Qd1 {[%clk 0:02:26]}  a5 {[%clk 0:02:29]} 17. Nd2 {[%clk 0:02:22]}  a4 {[%clk 0:02:28]} 18. Nxe4 {[%clk 0:02:20]}  Bxe4 {[%clk 0:02:29]} 19. b4 {[%clk 0:02:17]}  axb3 {[%clk 0:02:28]} 20. axb3 {[%clk 0:02:17]}  c5 {[%clk 0:02:25]} 21. Rxa8 {[%clk 0:02:09]}  Rxa8 {[%clk 0:02:24]} 22. c4 {[%clk 0:02:09]}  dxc4 {[%clk 0:02:20]} 23. dxc5 {[%clk 0:02:00]}  Qxd1 {[%clk 0:02:19]} 24. Bxd1 {[%clk 0:02:01]}  Rc8 {[%clk 0:02:12]} 25. bxc4 {[%clk 0:01:58]}  Bd3 {[%clk 0:02:10]} 26. Re1 {[%clk 0:01:57]}  Bxc4 {[%clk 0:02:10]} 27. Bf3 {[%clk 0:01:47]}  Rxc5 {[%clk 0:02:07]} 28. Rc1 {[%clk 0:01:47]}  Rc8 {[%clk 0:00:37]} 29. h4 {[%clk 0:01:46]}  g6 {[%clk 0:00:33]} 30. Kh2 {[%clk 0:01:38]}  Kg7 {[%clk 0:00:31]} 31. Kg3 {[%clk 0:01:38]}  Ba6 {[%clk 0:00:30]} 32. Ra1 {[%clk 0:01:37]}  Bd3 {[%clk 0:00:29]} 33. Ra7 {[%clk 0:01:36]}  Bf5 {[%clk 0:00:26]} 34. Kf4 {[%clk 0:01:31]}  h5 {[%clk 0:00:26]} 35. Ke5 {[%clk 0:01:30]}  Rc2 {[%clk 0:00:19]} 36. Kd6 {[%clk 0:01:27]}  Rxf2 {[%clk 0:00:18]} 37. Ke7 {[%clk 0:01:19]}  Rb2 {[%clk 0:00:19]} 38. Bc6 {[%clk 0:01:08]}  e5 {[%clk 0:00:16]} 39. Bd5 {[%clk 0:01:08]}  Be6 {[%clk 0:00:13]} 40. Bxe6 {[%clk 0:00:50]}  fxe6 {[%clk 0:00:14]} 41. Kxe6+ {[%clk 0:00:50]}  Kh6 {[%clk 0:00:15]} 42. Kxe5 {[%clk 0:00:46]}  Rxg2 {[%clk 0:00:15]} 43. Ra4 {[%clk 0:00:33]}  Rg4 {[%clk 0:00:14]} 44. Rxg4 {[%clk 0:00:32]}  hxg4 {[%clk 0:00:15]} 45. Kf4 {[%clk 0:00:33]}  Kh5 {[%clk 0:00:16]} 46. Kg3 {[%clk 0:00:34]}  g5 {[%clk 0:00:16]} 47. hxg5 {[%clk 0:00:34]}  Kxg5 {[%clk 0:00:17]} 48. Kg2 {[%clk 0:00:34]}  Kf4 {[%clk 0:00:18]} 49. Kf2 {[%clk 0:00:35]}  g3+ {[%clk 0:00:18]} 50. Kg2 {[%clk 0:00:35]}  Kg4 {[%clk 0:00:19]} 51. Kg1 {[%clk 0:00:36]}  Kf3 {[%clk 0:00:20]} 52. Kf1 {[%clk 0:00:36]}  Kf4 {[%clk 0:00:20]} 53. Kg2 {[%clk 0:00:36]}  Kg4 {[%clk 0:00:21]} 54. Kg1 {[%clk 0:00:37]}  Kh4 {[%clk 0:00:22]} 55. Kg2 {[%clk 0:00:37]}  Kg4 {[%clk 0:00:22]} 1/2-1/2

[Event "January 9 Early 2024"]
[Site "https://www.chess.com"]
[Date "2024.01.11"]
[Round "1"]
[White "Kostiukov, Alexandr"]
[Black "Principe, Gerson"]
[Result "0-1"]
[Board "203"]
[TimeControl "180+1"]
[WhiteFideId "14108100"]
[BlackFideId "3804550"]
[WhiteElo "2304"]
[BlackElo "2647"]
[WhiteTeam "UKR"]
[BlackTeam "PER"]
[WhiteClock "0:00:10"]
[BlackClock "0:00:26"]

1. g3 {[%clk 0:03:00]}  d5 {[%clk 0:02:59]} 2. Bg2 {[%clk 0:02:58]}  c6 {[%clk 0:03:00]} 3. d3 {[%clk 0:02:59]}  Nf6 {[%clk 0:03:00]} 4. e4 {[%clk 0:02:59]}  e6 {[%clk 0:02:57]} 5. e5 {[%clk 0:02:59]}  Nfd7 {[%clk 0:02:57]} 6. Qe2 {[%clk 0:02:59]}  Be7 {[%clk 0:02:56]} 7. Nf3 {[%clk 0:03:00]}  O-O {[%clk 0:02:56]} 8. O-O {[%clk 0:03:00]}  Re8 {[%clk 0:02:56]} 9. c4 {[%clk 0:03:00]}  f6 {[%clk 0:02:55]} 10. d4 {[%clk 0:02:56]}  f5 {[%clk 0:02:25]} 11. Nc3 {[%clk 0:02:51]}  Nf8 {[%clk 0:02:23]} 12. cxd5 {[%clk 0:02:39]}  cxd5 {[%clk 0:02:23]} 13. h4 {[%clk 0:02:39]}  a6 {[%clk 0:02:20]} 14. Ng5 {[%clk 0:02:28]}  g6 {[%clk 0:02:16]} 15. Be3 {[%clk 0:02:14]}  Nc6 {[%clk 0:02:14]} 16. Rad1 {[%clk 0:02:11]}  Kg7 {[%clk 0:02:13]} 17. Qd2 {[%clk 0:02:05]}  Bd7 {[%clk 0:01:54]} 18. Kh2 {[%clk 0:02:02]}  Rc8 {[%clk 0:01:53]} 19. Nh3 {[%clk 0:02:00]}  Kg8 {[%clk 0:01:52]} 20. h5 {[%clk 0:01:49]}  b5 {[%clk 0:01:43]} 21. hxg6 {[%clk 0:01:31]}  hxg6 {[%clk 0:01:44]} 22. Rh1 {[%clk 0:01:25]}  b4 {[%clk 0:01:24]} 23. Ne2 {[%clk 0:01:00]}  Na5 {[%clk 0:01:23]} 24. b3 {[%clk 0:00:58]}  Qc7 {[%clk 0:01:23]} 25. Rc1 {[%clk 0:00:54]}  Qb7 {[%clk 0:01:23]} 26. Bg5 {[%clk 0:00:41]}  Bb5 {[%clk 0:01:18]} 27. Nef4 {[%clk 0:00:36]}  Rxc1 {[%clk 0:01:14]} 28. Rxc1 {[%clk 0:00:35]}  Bxg5 {[%clk 0:00:56]} 29. Nxg5 {[%clk 0:00:35]}  Qe7 {[%clk 0:00:56]} 30. Nfh3 {[%clk 0:00:24]}  Nc6 {[%clk 0:00:54]} 31. f4 {[%clk 0:00:19]}  Rc8 {[%clk 0:00:50]} 32. Bf1 {[%clk 0:00:14]}  Bxf1 {[%clk 0:00:47]} 33. Rxf1 {[%clk 0:00:15]}  Na7 {[%clk 0:00:41]} 34. Nf2 {[%clk 0:00:15]}  Nb5 {[%clk 0:00:40]} 35. Qe3 {[%clk 0:00:13]}  Rc3 {[%clk 0:00:39]} 36. Qe2 {[%clk 0:00:12]}  Qc7 {[%clk 0:00:34]} 37. Rh1 {[%clk 0:00:11]}  Rc2 {[%clk 0:00:34]} 38. Qf3 {[%clk 0:00:12]}  Nxd4 {[%clk 0:00:33]} 39. Qg2 {[%clk 0:00:11]}  Qc3 {[%clk 0:00:31]} 40. Rf1 {[%clk 0:00:10]}  Qe3 {[%clk 0:00:30]} 41. Kg1 {[%clk 0:00:10]}  Ne2+ {[%clk 0:00:26]} 42. Kh1 {[%clk 0:00:10]}  Nxg3+ {[%clk 0:00:26]} 43. Kh2 {[%clk 0:00:10]}  Nxf1+ {[%clk 0:00:26]} 0-1

[Event "January 9 Early 2024"]
[Site "https://www.chess.com"]
[Date "2024.01.11"]
[Round "1"]
[White "Khouri, Ahmed Abbas"]
[Black "Aggelis, Nikolaos"]
[Result "1-0"]
[Board "204"]
[TimeControl "180+1"]
[WhiteFideId "9301518"]
[BlackFideId "4213220"]
[WhiteElo "2224"]
[BlackElo "2562"]
[WhiteTeam "UAE"]
[BlackTeam "GRE"]
[WhiteClock "0:00:18"]
[BlackClock "0:01:22"]

1. e4 {[%clk 0:02:37]}  c6 {[%clk 0:02:59]} 2. c4 {[%clk 0:02:37]}  d5 {[%clk 0:03:00]} 3. exd5 {[%clk 0:02:37]}  cxd5 {[%clk 0:03:00]} 4. cxd5 {[%clk 0:02:38]}  Nf6 {[%clk 0:03:00]} 5. Nc3 {[%clk 0:02:39]}  Nxd5 {[%clk 0:03:00]} 6. Nf3 {[%clk 0:02:40]}  g6 {[%clk 0:03:00]} 7. Bc4 {[%clk 0:02:40]}  Nb6 {[%clk 0:02:58]} 8. Bb3 {[%clk 0:02:39]}  Bg7 {[%clk 0:02:58]} 9. h4 {[%clk 0:02:40]}  O-O {[%clk 0:02:57]} 10. h5 {[%clk 0:02:40]}  Nc6 {[%clk 0:02:58]} 11. hxg6 {[%clk 0:02:38]}  hxg6 {[%clk 0:02:59]} 12. Ng5 {[%clk 0:02:18]}  Qd4 {[%clk 0:02:41]} 13. Qf3 {[%clk 0:02:08]}  Qe5+ {[%clk 0:02:41]} 14. Nge4 {[%clk 0:02:04]}  Nd4 {[%clk 0:02:34]} 15. Qg3 {[%clk 0:01:50]}  Qxg3 {[%clk 0:02:32]} 16. Nxg3 {[%clk 0:01:51]}  Nxb3 {[%clk 0:02:32]} 17. axb3 {[%clk 0:01:52]}  Be6 {[%clk 0:02:28]} 18. b4 {[%clk 0:01:46]}  Rfd8 {[%clk 0:02:26]} 19. Nge4 {[%clk 0:01:45]}  Bc4 {[%clk 0:02:10]} 20. Nc5 {[%clk 0:01:36]}  Rd6 {[%clk 0:02:10]} 21. d3 {[%clk 0:01:25]}  Bxd3 {[%clk 0:02:10]} 22. Nxb7 {[%clk 0:01:25]}  Re6+ {[%clk 0:02:02]} 23. Be3 {[%clk 0:01:25]}  Nc4 {[%clk 0:02:00]} 24. Nc5 {[%clk 0:01:21]}  Nxe3 {[%clk 0:02:00]} 25. Nxe6 {[%clk 0:01:16]}  Nc2+ {[%clk 0:02:00]} 26. Kd2 {[%clk 0:01:17]}  Nxa1 {[%clk 0:02:00]} 27. Nxg7 {[%clk 0:00:56]}  Nb3+ {[%clk 0:01:54]} 28. Kxd3 {[%clk 0:00:55]}  Rd8+ {[%clk 0:01:55]} 29. Kc4 {[%clk 0:00:53]}  Nd2+ {[%clk 0:01:55]} 30. Kb5 {[%clk 0:00:53]}  Rb8+ {[%clk 0:01:53]} 31. Kc5 {[%clk 0:00:29]}  Rc8+ {[%clk 0:01:39]} 32. Kb5 {[%clk 0:00:29]}  Rb8+ {[%clk 0:01:36]} 33. Kc5 {[%clk 0:00:29]}  a5 {[%clk 0:01:27]} 34. b5 {[%clk 0:00:26]}  Rc8+ {[%clk 0:01:19]} 35. Kb6 {[%clk 0:00:25]}  Kxg7 {[%clk 0:01:18]} 36. Kb7 {[%clk 0:00:21]}  Rc4 {[%clk 0:01:15]} 37. Rd1 {[%clk 0:00:19]}  Nb3 {[%clk 0:01:15]} 38. b6 {[%clk 0:00:18]}  Rb4 {[%clk 0:01:15]} 39. Rd5 {[%clk 0:00:16]}  a4 {[%clk 0:01:15]} 40. Ka7 {[%clk 0:00:13]}  Nd4 {[%clk 0:01:12]} 41. Rxd4 {[%clk 0:00:10]}  Rxd4 {[%clk 0:01:12]} 42. b7 {[%clk 0:00:11]}  Rb4 {[%clk 0:01:13]} 43. b8=Q {[%clk 0:00:11]}  Rxb8 {[%clk 0:01:12]} 44. Kxb8 {[%clk 0:00:12]}  e5 {[%clk 0:01:13]} 45. Nxa4 {[%clk 0:00:13]}  Kf6 {[%clk 0:01:13]} 46. b4 {[%clk 0:00:14]}  Ke6 {[%clk 0:01:14]} 47. b5 {[%clk 0:00:14]}  Kd6 {[%clk 0:01:14]} 48. b6 {[%clk 0:00:15]}  Kc6 {[%clk 0:01:15]} 49. b7 {[%clk 0:00:16]}  Kb5 {[%clk 0:01:15]} 50. Nc3+ {[%clk 0:00:16]}  Kc4 {[%clk 0:01:14]} 51. Ne4 {[%clk 0:00:15]}  Kd4 {[%clk 0:01:14]} 52. Nf6 {[%clk 0:00:15]}  Kd3 {[%clk 0:01:13]} 53. Kc7 {[%clk 0:00:15]}  Ke2 {[%clk 0:01:14]} 54. b8=Q {[%clk 0:00:14]}  Kxf2 {[%clk 0:01:15]} 55. Qf8 {[%clk 0:00:13]}  Kxg2 {[%clk 0:01:16]} 56. Qxf7 {[%clk 0:00:14]}  g5 {[%clk 0:01:16]} 57. Qg6 {[%clk 0:00:14]}  Kf3 {[%clk 0:01:16]} 58. Qxg5 {[%clk 0:00:15]}  e4 {[%clk 0:01:17]} 59. Qf5+ {[%clk 0:00:15]}  Kg3 {[%clk 0:01:16]} 60. Qxe4 {[%clk 0:00:16]}  Kh2 {[%clk 0:01:17]} 61. Qg4 {[%clk 0:00:15]}  Kh1 {[%clk 0:01:18]} 62. Kd6 {[%clk 0:00:15]}  Kh2 {[%clk 0:01:19]} 63. Ke5 {[%clk 0:00:16]}  Kh1 {[%clk 0:01:20]} 64. Kf4 {[%clk 0:00:17]}  Kh2 {[%clk 0:01:21]} 65. Kf3 {[%clk 0:00:18]}  Kh1 {[%clk 0:01:22]} 66. Qg2# {[%clk 0:00:18]} 1-0

[Event "January 9 Early 2024"]
[Site "https://www.chess.com"]
[Date "2024.01.11"]
[Round "1"]
[White "Garrido, Denis"]
[Black "Sturt, Raven"]
[Result "0-1"]
[Board "210"]
[TimeControl "180+1"]
[WhiteFideId "601217"]
[BlackFideId "2007304"]
[WhiteElo "2402"]
[BlackElo "2731"]
[WhiteTeam "FRA"]
[BlackTeam "USA"]
[WhiteClock "0:00:01"]
[BlackClock "0:00:10"]

1. e4 {[%clk 0:02:58]}  c5 {[%clk 0:01:28]} 2. Nf3 {[%clk 0:02:58]}  e6 {[%clk 0:01:28]} 3. d4 {[%clk 0:02:58]}  cxd4 {[%clk 0:01:28]} 4. Nxd4 {[%clk 0:02:58]}  Nc6 {[%clk 0:01:29]} 5. Nc3 {[%clk 0:02:57]}  Qc7 {[%clk 0:01:29]} 6. Qd3 {[%clk 0:02:58]}  a6 {[%clk 0:01:25]} 7. Nxc6 {[%clk 0:02:58]}  Qxc6 {[%clk 0:01:25]} 8. Qg3 {[%clk 0:02:56]}  b5 {[%clk 0:01:24]} 9. Bd3 {[%clk 0:02:55]}  Bb7 {[%clk 0:01:21]} 10. O-O {[%clk 0:02:51]}  h5 {[%clk 0:01:20]} 11. Re1 {[%clk 0:02:11]}  h4 {[%clk 0:01:19]} 12. Qh3 {[%clk 0:02:11]}  Ne7 {[%clk 0:01:14]} 13. e5 {[%clk 0:01:42]}  f5 {[%clk 0:00:56]} 14. exf6 {[%clk 0:01:38]}  gxf6 {[%clk 0:00:56]} 15. Be4 {[%clk 0:01:38]}  d5 {[%clk 0:00:54]} 16. Bf3 {[%clk 0:01:31]}  e5 {[%clk 0:00:54]} 17. Qg4 {[%clk 0:00:59]}  e4 {[%clk 0:00:36]} 18. Nxe4 {[%clk 0:00:52]}  f5 {[%clk 0:00:33]} 19. Nf6+ {[%clk 0:00:17]}  Qxf6 {[%clk 0:00:33]} 20. Bg5 {[%clk 0:00:17]}  fxg4 {[%clk 0:00:23]} 21. Bxf6 {[%clk 0:00:16]}  Rg8 {[%clk 0:00:24]} 22. Be2 {[%clk 0:00:11]}  h3 {[%clk 0:00:24]} 23. Bd3 {[%clk 0:00:10]}  Kf7 {[%clk 0:00:24]} 24. Bd4 {[%clk 0:00:09]}  Bg7 {[%clk 0:00:23]} 25. Bxg7 {[%clk 0:00:09]}  Rxg7 {[%clk 0:00:24]} 26. Re5 {[%clk 0:00:09]}  hxg2 {[%clk 0:00:21]} 27. Rae1 {[%clk 0:00:09]}  Re8 {[%clk 0:00:17]} 28. Kxg2 {[%clk 0:00:04]}  d4+ {[%clk 0:00:16]} 29. Kg1 {[%clk 0:00:05]}  Bc6 {[%clk 0:00:16]} 30. a3 {[%clk 0:00:05]}  Nd5 {[%clk 0:00:13]} 31. Rf5+ {[%clk 0:00:04]}  Nf6 {[%clk 0:00:13]} 32. Rxe8 {[%clk 0:00:04]}  Bxe8 {[%clk 0:00:13]} 33. Be4 {[%clk 0:00:04]}  Ke6 {[%clk 0:00:12]} 34. Rf4 {[%clk 0:00:01]}  Ke5 {[%clk 0:00:10]} 0-1

[Event "January 9 Early 2024"]
[Site "https://www.chess.com"]
[Date "2024.01.11"]
[Round "1"]
[White "Grutter, Tim"]
[Black "Nowak, Lukasz"]
[Result "1-0"]
[Board "211"]
[TimeControl "180+1"]
[WhiteFideId "1057472"]
[BlackFideId "1166760"]
[WhiteElo "2548"]
[BlackElo "2006"]
[WhiteTeam "NED"]
[BlackTeam "POL"]
[WhiteClock "0:00:01"]
[BlackClock "0:00:03"]

1. Nf3 {[%clk 0:02:56]}  d5 {[%clk 0:02:56]} 2. g3 {[%clk 0:02:56]}  Nd7 {[%clk 0:02:55]} 3. d4 {[%clk 0:02:53]}  Nb6 {[%clk 0:02:53]} 4. Bg2 {[%clk 0:02:53]}  Bf5 {[%clk 0:02:51]} 5. O-O {[%clk 0:02:51]}  e6 {[%clk 0:02:51]} 6. a4 {[%clk 0:02:50]}  a5 {[%clk 0:02:49]} 7. Nc3 {[%clk 0:02:47]}  h6 {[%clk 0:02:34]} 8. Ne5 {[%clk 0:02:39]}  Nf6 {[%clk 0:02:22]} 9. f3 {[%clk 0:02:27]}  Be7 {[%clk 0:02:07]} 10. e4 {[%clk 0:02:27]}  Bh7 {[%clk 0:02:06]} 11. Be3 {[%clk 0:02:24]}  O-O {[%clk 0:02:03]} 12. Qd2 {[%clk 0:02:19]}  Rc8 {[%clk 0:01:56]} 13. Rad1 {[%clk 0:02:13]}  c5 {[%clk 0:01:51]} 14. dxc5 {[%clk 0:02:13]}  Bxc5 {[%clk 0:01:50]} 15. Bxc5 {[%clk 0:02:13]}  Rxc5 {[%clk 0:01:50]} 16. Qd4 {[%clk 0:02:05]}  Qc8 {[%clk 0:01:48]} 17. Nd3 {[%clk 0:01:49]}  Rc6 {[%clk 0:01:30]} 18. Ne5 {[%clk 0:01:43]}  Rc5 {[%clk 0:01:28]} 19. Rd2 {[%clk 0:01:32]}  Nc4 {[%clk 0:01:23]} 20. Nxc4 {[%clk 0:01:27]}  Rxc4 {[%clk 0:01:23]} 21. Qb6 {[%clk 0:01:09]}  Rb4 {[%clk 0:00:55]} 22. Qxa5 {[%clk 0:01:00]}  Rxb2 {[%clk 0:00:54]} 23. Nb5 {[%clk 0:00:36]}  Rxc2 {[%clk 0:00:39]} 24. e5 {[%clk 0:00:32]}  Nd7 {[%clk 0:00:31]} 25. f4 {[%clk 0:00:21]}  Qc5+ {[%clk 0:00:19]} 26. Kh1 {[%clk 0:00:20]}  b6 {[%clk 0:00:17]} 27. Rxc2 {[%clk 0:00:17]}  bxa5 {[%clk 0:00:17]} 28. Rxc5 {[%clk 0:00:17]}  Nxc5 {[%clk 0:00:17]} 29. Ra1 {[%clk 0:00:12]}  Rb8 {[%clk 0:00:15]} 30. Bf1 {[%clk 0:00:12]}  Bd3 {[%clk 0:00:06]} 31. Bxd3 {[%clk 0:00:03]}  Nxd3 {[%clk 0:00:06]} 32. Nd6 {[%clk 0:00:01]}  Nc5 {[%clk 0:00:05]} 33. Rc1 {[%clk 0:00:01]}  Nxa4 {[%clk 0:00:03]} 34. Rc7 {[%clk 0:00:01]} 1-0

[Event "January 9 Early 2024"]
[Site "https://www.chess.com"]
[Date "2024.01.11"]
[Round "1"]
[White "Bharadia Yash"]
[Black "Rozman, Levy"]
[Result "0-1"]
[Board "213"]
[TimeControl "180+1"]
[WhiteFideId "45087822"]
[BlackFideId "2039877"]
[WhiteElo "2292"]
[BlackElo "2650"]
[WhiteTeam "IND"]
[BlackTeam "USA"]
[WhiteClock "0:00:02"]
[BlackClock "0:00:25"]

1. e4 {[%clk 0:03:00]}  d5 {[%clk 0:02:49]} 2. exd5 {[%clk 0:02:58]}  Qxd5 {[%clk 0:02:50]} 3. Nc3 {[%clk 0:02:58]}  Qa5 {[%clk 0:02:49]} 4. d4 {[%clk 0:02:58]}  Nf6 {[%clk 0:02:49]} 5. Nf3 {[%clk 0:02:58]}  Bf5 {[%clk 0:02:49]} 6. Bc4 {[%clk 0:02:59]}  e6 {[%clk 0:02:47]} 7. Bd2 {[%clk 0:02:59]}  Bb4 {[%clk 0:02:46]} 8. a3 {[%clk 0:02:57]}  Bxc3 {[%clk 0:02:46]} 9. Bxc3 {[%clk 0:02:58]}  Qb6 {[%clk 0:02:46]} 10. O-O {[%clk 0:02:51]}  Nc6 {[%clk 0:02:45]} 11. Qe2 {[%clk 0:02:35]}  O-O {[%clk 0:02:41]} 12. Rad1 {[%clk 0:02:32]}  Rad8 {[%clk 0:02:37]} 13. h3 {[%clk 0:02:29]}  Ne4 {[%clk 0:02:22]} 14. Qe3 {[%clk 0:02:13]}  Nxc3 {[%clk 0:02:14]} 15. Qxc3 {[%clk 0:02:13]}  Be4 {[%clk 0:02:09]} 16. Ng5 {[%clk 0:01:23]}  Bd5 {[%clk 0:01:51]} 17. Qd3 {[%clk 0:00:24]}  g6 {[%clk 0:01:51]} 18. Bxd5 {[%clk 0:00:25]}  Rxd5 {[%clk 0:01:51]} 19. Ne4 {[%clk 0:00:25]}  Kg7 {[%clk 0:01:33]} 20. c4 {[%clk 0:00:18]}  Rxd4 {[%clk 0:01:24]} 21. Qc3 {[%clk 0:00:19]}  e5 {[%clk 0:01:22]} 22. Ng5 {[%clk 0:00:17]}  Qc5 {[%clk 0:01:13]} 23. b3 {[%clk 0:00:12]}  Qxa3 {[%clk 0:01:02]} 24. Nf3 {[%clk 0:00:12]}  Rxd1 {[%clk 0:01:00]} 25. Rxd1 {[%clk 0:00:13]}  Qe7 {[%clk 0:01:01]} 26. b4 {[%clk 0:00:13]}  Qxb4 {[%clk 0:00:56]} 27. Qa1 {[%clk 0:00:11]}  Qe7 {[%clk 0:00:50]} 28. h4 {[%clk 0:00:11]}  Rd8 {[%clk 0:00:46]} 29. Rb1 {[%clk 0:00:10]}  b6 {[%clk 0:00:44]} 30. h5 {[%clk 0:00:10]}  a5 {[%clk 0:00:44]} 31. Rb5 {[%clk 0:00:09]}  f6 {[%clk 0:00:34]} 32. c5 {[%clk 0:00:08]}  Rd5 {[%clk 0:00:31]} 33. hxg6 {[%clk 0:00:04]}  hxg6 {[%clk 0:00:31]} 34. Qa4 {[%clk 0:00:03]}  Rxc5 {[%clk 0:00:30]} 35. Rxc5 {[%clk 0:00:03]}  Qxc5 {[%clk 0:00:30]} 36. Qg4 {[%clk 0:00:02]}  Qc1+ {[%clk 0:00:30]} 37. Kh2 {[%clk 0:00:01]}  Qf4+ {[%clk 0:00:29]} 38. Kg1 {[%clk 0:00:02]}  Qc1+ {[%clk 0:00:25]} 0-1